bitfinex/quotes_SOLUSD_20250809
["timestamp","ask_amount","ask_price","bid_price","bid_amount"]
[1754776453362,5.50357732,181.7,181.67,4.81100588]
[1754776453563,9.17709585,181.7,181.68,4.11100588]
[1754776453859,9.17709585,181.7,181.69,4.11100588]
[1754776456351,19.25934077,181.73,181.69,4.11100588]
[1754776456661,19.25934077,181.73,181.7,4.11100588]
[1754776456873,19.25934077,181.73,181.71,4.11100588]
[1754776457045,19.25934077,181.73,181.65,0.7]
[1754776457250,19.25934077,181.73,181.66,4.11779404]
[1754776457437,19.25934077,181.73,181.67,4.11779404]
[1754776457633,19.25934077,181.73,181.68,4.11779404]
[1754776457863,19.25934077,181.73,181.66,0.7]
[1754776457864,9.17739876,181.69,181.66,0.7]
[1754776458067,9.17739876,181.69,181.67,4.11771458]
[1754776458274,5.50327444,181.71,181.68,4.11771458]
[1754776458565,5.50327444,181.71,181.69,4.11771458]
[1754776458764,5.50327444,181.71,181.7,4.11773656]
[1754776458942,9.17679297,181.71,181.7,4.11773656]
[1754776463152,37.62905321,181.71,181.64,0.7]
[1754776463352,3.67351853,181.66,181.65,4.11825921]
[1754776463956,39.4,181.68,181.65,4.11825921]
[1754776464169,39.4,181.68,181.66,4.11817806]
[1754776464472,39.4,181.68,181.64,0.7]
[1754776464473,39.4,181.68,181.67,4.11817806]
[1754776464642,39.4,181.68,181.67,4.1180375]
[1754776465073,44.90418317,181.68,181.67,4.1180375]
[1754776465445,48.5777017,181.68,181.67,4.1180375]
[1754776469954,62.33815964,181.68,181.62,0.66]
[1754776470154,3.67351853,181.65,181.63,4.00208995]
[1754776470350,39.36,181.64,181.63,0.72]
[1754776470576,39.36,181.64,181.63,4.72192307]
[1754776471086,44.86539528,181.64,181.63,4.72192307]
[1754776474488,48.53891381,181.64,181.63,4.06192307]
[1754776476394,44.86539528,181.64,181.63,4.06192307]
[1754776476591,48.53891381,181.64,181.63,4.06192307]
[1754776477104,48.53891381,181.64,181.63,4.72192307]
[1754776477870,44.86539528,181.64,181.63,4.72192307]
[1754776478099,48.53891381,181.64,181.63,4.72192307]
[1754776478290,44.86539528,181.64,181.63,4.72192307]
[1754776478501,48.53891381,181.64,181.63,4.72192307]
[1754776481104,48.53891381,181.64,181.63,4.06192307]
[1754776484713,44.86539528,181.64,181.63,4.06192307]
[1754776484918,48.53891381,181.64,181.63,4.06192307]
[1754776486317,48.53891381,181.64,181.63,0.06]
[1754776488419,48.47891381,181.64,181.63,0.06]
[1754776490302,44.80539528,181.64,181.63,0.06]
[1754776490630,63.58512938,181.64,181.63,0.06]
[1754776493203,9.17891381,181.64,181.63,0.06]
[1754776493394,48.45891381,181.64,181.63,0.72]
[1754776493594,48.45891381,181.64,181.63,0.06]
[1754776495600,63.56512938,181.64,181.63,0.06]
[1754776497102,63.75200562,181.64,181.63,0.06]
[1754776497550,63.75200562,181.64,181.63,0.72]
[1754776497834,63.75200562,181.64,181.63,0.06]
[1754776499522,63.75200562,181.64,181.63,0.74]
[1754776499921,63.56512938,181.64,181.63,0.74]
[1754776502519,63.56512938,181.64,181.63,0.06]
[1754776511041,63.56512938,181.64,181.63,0.74]
[1754776515162,63.56512938,181.64,181.63,0.06]
[1754776515749,63.75198605,181.64,181.63,0.06]
[1754776515948,63.75198605,181.64,181.63,0.74]
[1754776516932,63.56512938,181.64,181.63,0.74]
[1754776519855,59.89161085,181.64,181.63,0.74]
[1754776520066,63.56512938,181.64,181.63,0.74]
[1754776521541,63.56512938,181.64,181.63,0.06]
[1754776522277,63.56512938,181.64,181.63,0.74]
[1754776527788,59.89161085,181.64,181.63,0.74]
[1754776527967,63.56512938,181.64,181.63,0.74]
[1754776529363,63.56512938,181.64,181.63,4.64783432]
[1754776529667,63.56512938,181.64,181.63,0.74]
[1754776529864,63.56512938,181.64,181.63,4.64780584]
[1754776530175,59.89161085,181.64,181.63,4.64780584]
[1754776530376,63.56512938,181.64,181.63,4.64780584]
[1754776530681,59.89161085,181.64,181.63,4.64780584]
[1754776530881,63.56512938,181.64,181.63,4.64780584]
[1754776541794,24.28512938,181.64,181.63,4.64780584]
[1754776541978,63.54512938,181.64,181.63,4.64780584]
[1754776549705,9.17891381,181.64,181.63,4.64780584]
[1754776550012,5.50539528,181.64,181.63,4.64780584]
[1754776550208,44.74539528,181.64,181.63,4.64780584]
[1754776550415,48.41891381,181.64,181.63,4.64780584]
[1754776555511,48.41891381,181.64,181.63,4.64795968]
[1754776563489,48.41891381,181.64,181.63,4.64548116]
[1754776566494,48.41891381,181.64,181.63,4.64502751]
[1754776566999,44.74539528,181.64,181.63,4.64502751]
[1754776567320,48.41891381,181.64,181.63,4.64502751]
[1754776572306,48.41891381,181.64,181.63,3.96502751]
[1754776578630,48.41891381,181.64,181.63,0.06]
[1754776579223,63.52512938,181.64,181.63,3.95169398]
[1754776579426,63.52512938,181.64,181.63,0.06]
[1754776579611,65.73001838,181.64,181.63,0.06]
[1754776580808,62.01649985,181.64,181.63,4.64158508]
[1754776581121,65.69001838,181.64,181.63,3.95158508]
[1754776581319,65.69001838,181.64,181.63,0.06]
[1754776584041,62.01649985,181.64,181.63,0.06]
[1754776584219,65.69001838,181.64,181.63,0.06]
[1754776585021,65.87687299,181.64,181.63,0.06]
[1754776592239,62.20335446,181.64,181.63,0.06]
[1754776592556,65.87687299,181.64,181.63,0.06]
[1754776594731,65.69001838,181.64,181.63,0.06]
[1754776595041,65.87690595,181.64,181.63,0.06]
[1754776596565,65.87690595,181.64,181.63,1e-08]
[1754776602972,60.37151067,181.64,181.63,1e-08]
[1754776604059,56.69799214,181.64,181.63,1e-08]
[1754776604362,60.37151067,181.64,181.63,1e-08]
[1754776604981,65.87690595,181.64,181.63,1e-08]
[1754776610680,67.89751219,181.64,181.63,1e-08]
[1754776614447,41.10621557,181.61,181.6,0.06]
[1754776614765,83.9597341,181.61,181.6,0.06]
[1754776615171,86.1649881,181.61,181.6,0.06]
[1754776615670,87.99777428,181.61,181.6,0.06]
[1754776615848,91.67129281,181.61,181.6,0.06]
[1754776616551,91.67129281,181.61,181.6,0.77]
[1754776617364,92.33129281,181.61,181.59,0.06]
[1754776617550,18.7797341,181.6,181.59,0.06]
[1754776617757,18.96664021,181.6,181.59,1e-08]
[1754776618078,21.17213721,181.6,181.59,1e-08]
[1754776619351,26.67874513,181.6,181.59,0.72000001]
[1754776619557,26.67874513,181.6,181.59,1e-08]
[1754776619757,26.49183902,181.6,181.59,1e-08]
[1754776619970,26.67874513,181.6,181.59,1e-08]
[1754776621171,27.37874513,181.6,181.59,1e-08]
[1754776621665,31.82407816,181.6,181.59,1e-08]
[1754776621985,31.12407816,181.6,181.59,1e-08]
[1754776622888,15.10621557,181.59,181.57,0.06]
[1754776623061,57.9597341,181.58,181.57,0.06]
[1754776623486,60.35225921,181.58,181.57,0.06]
[1754776623984,65.85947366,181.58,181.57,0.06]
[1754776626284,66.55947366,181.58,181.54,0.78]
[1754776626592,18.7797341,181.56,181.54,0.78]
[1754776626790,57.9597341,181.56,181.54,0.78]
[1754776627180,60.1655961,181.56,181.54,0.78]
[1754776628480,15.10621557,181.55,181.54,0.06]
[1754776629094,18.7797341,181.55,181.54,0.06]
[1754776629801,20.61434005,181.55,181.54,0.06]
[1754776630007,22.82032305,181.55,181.54,0.06]
[1754776630311,26.49384158,181.55,181.54,0.06]
[1754776632402,22.82032305,181.55,181.54,0.06]
[1754776632598,26.49384158,181.55,181.54,0.06]
[1754776634390,27.19384158,181.55,181.54,0.06]
[1754776638904,23.52032305,181.55,181.54,0.06]
[1754776639110,27.19384158,181.55,181.54,0.06]
[1754776641522,27.19384158,181.55,181.53,0.06]
[1754776641825,58.6397341,181.54,181.53,0.06]
[1754776641984,58.82669998,181.54,181.53,0.06]
[1754776642614,64.33512787,181.54,181.53,0.06]
[1754776643489,90.33512787,181.54,181.53,0.06]
[1754776645313,79.02920199,181.54,181.53,1e-08]
[1754776645520,41.10621557,181.52,181.51,1e-08]
[1754776645709,83.9397341,181.52,181.51,1e-08]
[1754776645911,84.6397341,181.52,181.51,1e-08]
[1754776646111,87.03318953,181.52,181.51,1e-08]
[1754776646814,15.10621557,181.51,181.5,1e-08]
[1754776647018,19.4797341,181.51,181.49,1e-08]
[1754776647316,20.61616102,181.49,181.48,1e-08]
[1754776647489,24.28967955,181.49,181.48,1e-08]
[1754776647811,24.98967955,181.49,181.48,1e-08]
[1754776647997,27.19688055,181.49,181.48,1e-08]
[1754776648717,27.38386498,181.49,181.48,1e-08]
[1754776651632,15.10621557,181.45,181.43,0.68]
[1754776651931,57.9397341,181.45,181.41,0.88]
[1754776652116,58.6597341,181.45,181.41,0.88]
[1754776652318,60.8669351,181.45,181.41,0.88]
[1754776653013,66.37809519,181.45,181.41,0.88]
[1754776653231,66.56516008,181.45,181.41,0.88]
[1754776656123,26.68516008,181.45,181.44,0.88]
[1754776656329,65.65809519,181.45,181.44,0.88]
[1754776657644,65.65809519,181.45,181.44,0.2]
[1754776664117,5.51116009,181.45,181.44,0.88]
[1754776664321,44.67116009,181.45,181.44,0.88]
[1754776666252,39.16,181.45,181.44,0.88]
[1754776670662,44.67116009,181.45,181.44,0.88]
[1754776673452,44.67116009,181.45,181.44,0.2]
[1754776676143,39.16,181.45,181.44,0.2]
[1754776676357,39.16,181.45,181.44,4.77911718]
[1754776677372,45.39116009,181.45,181.44,4.09911718]
[1754776677673,45.39116009,181.45,181.44,0.2]
[1754776677871,49.06467862,181.45,181.44,0.2]
[1754776678854,48.34467862,181.45,181.44,0.2]
[1754776681371,48.34467862,181.45,181.44,4.10339771]
[1754776681668,48.34467862,181.45,181.44,0.2]
[1754776681866,49.06467862,181.45,181.44,0.2]
[1754776682673,49.06467862,181.45,181.44,4.10451541]
[1754776684942,44.67116009,181.45,181.44,4.10690098]
[1754776687872,44.67116009,181.45,181.44,4.77690098]
[1754776690371,44.67116009,181.45,181.44,4.10690098]
[1754776690875,44.67116009,181.45,181.44,4.77690098]
[1754776691074,39.16,181.45,181.44,4.77690098]
[1754776693056,39.16,181.45,181.44,4.10690098]
[1754776693367,5.51091684,181.46,181.44,4.10690098]
[1754776693556,39.18,181.45,181.44,0.2]
[1754776693868,39.18,181.45,181.44,4.11843074]
[1754776694069,39.18,181.45,181.44,4.78843074]
[1754776695885,39.18,181.45,181.44,4.11843074]
[1754776697090,45.41116009,181.45,181.44,4.11843074]
[1754776703564,45.41116009,181.45,181.44,0.2]
[1754776703884,45.41116009,181.45,181.44,4.11533512]
[1754776704672,49.08467862,181.45,181.44,4.11533512]
[1754776705477,45.41116009,181.45,181.44,4.11533512]
[1754776705895,49.08467862,181.45,181.44,4.11533512]
[1754776706097,45.41116009,181.45,181.44,4.11533512]
[1754776713779,44.91116009,181.45,181.44,4.11533512]
[1754776718511,44.91116009,181.45,181.44,4.33102315]
[1754776719049,44.19116009,181.45,181.44,4.33102315]
[1754776721099,44.90116009,181.45,181.44,4.33102315]
[1754776730227,48.57467862,181.45,181.44,4.33102315]
[1754776732832,44.90116009,181.45,181.44,4.33102315]
[1754776733019,48.57467862,181.45,181.44,4.33102315]
[1754776735622,44.90116009,181.45,181.44,4.33102315]
[1754776735825,48.57467862,181.45,181.44,4.33102315]
[1754776736721,44.90116009,181.45,181.44,4.33102315]
[1754776736925,44.19116009,181.45,181.44,4.33102315]
[1754776737953,44.22116009,181.45,181.44,4.33102315]
[1754776738533,44.93116009,181.45,181.44,4.33102315]
[1754776739051,44.22116009,181.45,181.44,4.33102315]
[1754776739347,44.22116009,181.45,181.44,5.02102315]
[1754776739348,0.03,181.45,181.44,5.02102315]
[1754776739531,39.37,181.45,181.44,5.02102315]
[1754776739734,39.37,181.45,181.44,4.33102315]
[1754776745675,39.37,181.45,181.44,8.69454168]
[1754776746548,39.29,181.45,181.44,8.69454168]
[1754776746931,39.29,181.45,181.44,8.69224758]
[1754776747162,0.03,181.45,181.44,8.69224758]
[1754776750064,0.03,181.45,181.44,8.68947336]
[1754776750664,0.03,181.45,181.44,14.2009372]
[1754776752962,0.03,181.45,181.44,10.52741867]
[1754776753371,0.03,181.45,181.44,14.2009372]
[1754776758755,0.03,181.45,181.44,10.52741867]
[1754776758945,0.03,181.45,181.44,14.2009372]
[1754776759250,0.03,181.45,181.44,10.52741867]
[1754776759454,0.03,181.45,181.44,14.2009372]
[1754776760169,0.03,181.45,181.44,10.52741867]
[1754776760348,0.03,181.45,181.44,14.2009372]
[1754776763576,0.03,181.45,181.44,13.5109372]
[1754776764683,0.75,181.45,181.44,7.99947336]
[1754776765750,0.75,181.45,181.44,4.32595483]
[1754776766152,39.93,181.45,181.44,4.32595483]
[1754776766349,43.60351853,181.45,181.44,3.60595483]
[1754776766575,58.7097341,181.45,181.44,2.88595483]
[1754776766786,108.52092331,181.45,181.44,1e-08]
[1754776766974,15.10621557,181.44,181.42,1e-08]
[1754776767181,3.67351853,181.43,181.42,1e-08]
[1754776767351,4.37351853,181.43,181.42,1e-08]
[1754776768054,4.56048853,181.43,181.42,1e-08]
[1754776769182,10.07225615,181.43,181.42,1e-08]
[1754776769870,25.17847172,181.43,181.42,1e-08]
[1754776771260,41.10621557,181.42,181.4,0.06]
[1754776771477,15.10621557,181.38,181.36,1e-08]
[1754776771664,83.9597341,181.37,181.36,1e-08]
[1754776771863,84.6197341,181.37,181.36,1e-08]
[1754776773259,90.1333251,181.37,181.36,1e-08]
[1754776773658,15.10621557,181.32,181.25,0.66]
[1754776773966,3.67351853,181.28,181.25,0.66]
[1754776774169,39.2,181.27,181.25,0.66]
[1754776774760,44.71663997,181.27,181.25,0.66]
[1754776775493,45.37663997,181.27,181.23,0.66]
[1754776775697,51.13129998,181.27,181.23,0.66]
[1754776776391,45.37663997,181.27,181.23,0.66]
[1754776776571,51.13129998,181.27,181.23,0.66]
[1754776776983,0.66,181.26,181.21,5.75466001]
[1754776777196,39.22,181.25,181.2,26.0]
[1754776777405,0.66,181.24,181.17,31.51967478]
[1754776777579,0.66,181.24,181.2,5.75466001]
[1754776777779,0.66,181.24,181.21,5.75466001]
[1754776777991,39.88,181.25,181.2,5.75466001]
[1754776778170,0.66,181.24,181.2,5.75466001]
[1754776778377,44.73749779,181.25,181.21,5.75466001]
[1754776778573,39.22,181.27,181.24,5.75466001]
[1754776778777,39.22,181.27,181.26,5.75466001]
[1754776778998,39.22,181.27,181.26,6.41466001]
[1754776779823,39.26,181.3,181.26,12.16932002]
[1754776780115,27.83381383,181.36,181.29,5.75466001]
[1754776780116,39.26,181.33,181.29,5.75466001]
[1754776780278,39.26,181.33,181.26,5.75466001]
[1754776780471,39.26,181.33,181.31,5.75466001]
[1754776780695,39.26,181.33,181.32,0.66]
[1754776782403,45.43484244,181.33,181.28,0.66]
[1754776782714,44.77484244,181.33,181.29,6.41466001]
[1754776783014,44.77484244,181.33,181.3,0.66]
[1754776783782,5.51423836,181.35,181.31,0.66]
[1754776784005,39.3,181.34,181.32,0.66]
[1754776784504,39.3,181.34,181.33,0.66]
[1754776791226,39.28,181.36,181.33,0.66]
[1754776792313,39.94,181.36,181.33,0.66]
[1754776798141,39.94,181.36,181.31,11.27003457]
[1754776798142,0.66,181.35,181.31,6.41466001]
[1754776799219,0.66,181.35,181.32,0.67]
[1754776799824,0.71,181.34,181.31,5.75466001]
[1754776800025,0.71,181.34,181.31,6.42466001]
[1754776800321,39.93,181.33,181.28,5.75466001]
[1754776800543,0.71,181.32,181.28,6.42466001]
[1754776800755,39.22,181.33,181.3,5.75466001]
[1754776801038,39.22,181.33,181.31,0.67]
[1754776801843,6.25306085,181.39,181.32,5.75466001]
[1754776802024,6.25306085,181.39,181.33,6.42466001]
[1754776802340,0.74,181.39,181.34,6.42466001]
[1754776802520,39.98,181.39,181.35,6.42466001]
[1754776802724,39.27,181.39,181.36,0.67]
[1754776803133,39.27,181.39,181.36,6.42466001]
[1754776803325,39.27,181.39,181.37,0.67]
[1754776803529,39.27,181.39,181.37,6.42466001]
[1754776804917,0.03,181.39,181.38,6.42466001]
[1754776806137,0.03,181.39,181.38,22.08220428]
[1754776806960,0.03,181.39,181.38,27.5954913]
[1754776807134,0.03,181.39,181.38,37.93794703]
[1754776808271,0.03,181.39,181.38,11.26794703]
[1754776808576,0.03,181.39,181.38,5.75466001]
[1754776808775,0.74,181.39,181.38,5.75466001]
[1754776808937,0.74,181.39,181.37,5.75466001]
[1754776809146,0.74,181.39,181.36,5.75466001]
[1754776809350,0.74,181.39,181.35,5.75466001]
[1754776809780,0.71,181.38,181.35,5.75466001]
[1754776810155,0.71,181.38,181.34,32.18424552]
[1754776810472,0.03,181.39,181.37,5.75466001]
[1754776810649,0.74,181.39,181.37,5.75466001]
[1754776810978,0.03,181.39,181.38,5.75466001]
[1754776811182,0.03,181.39,181.38,6.42466001]
[1754776812473,0.03,181.39,181.38,11.93794703]
[1754776815154,0.03,181.39,181.38,27.0441626]
[1754776815405,0.03,181.39,181.38,53.0441626]
[1754776815683,0.03,181.39,181.38,37.93794703]
[1754776816995,0.03,181.39,181.38,31.75466001]
[1754776817195,0.03,181.39,181.37,11.26822341]
[1754776817696,0.74,181.39,181.37,5.75466001]
[1754776817898,0.74,181.39,181.36,5.51389483]
[1754776818187,0.74,181.39,181.37,5.75466001]
[1754776819096,0.71,181.38,181.35,5.75466001]
[1754776819310,0.71,181.38,181.34,5.75466001]
[1754776820097,6.22337774,181.38,181.34,5.75466001]
[1754776820307,6.46466001,181.37,181.32,5.75466001]
[1754776820484,0.71,181.36,181.31,5.75466001]
[1754776820674,5.75466001,181.35,181.26,0.06]
[1754776820873,0.71,181.34,181.26,0.73]
[1754776821181,45.52451253,181.34,181.26,0.73]
[1754776821511,5.75466001,181.31,181.26,0.06]
[1754776822005,0.71,181.3,181.26,0.06]
[1754776822368,0.71,181.3,181.26,5.81466001]
[1754776822569,0.71,181.3,181.26,0.06]
[1754776822771,0.71,181.3,181.27,5.75466001]
[1754776823071,0.71,181.29,181.26,0.06]
[1754776823485,51.28078957,181.29,181.26,0.06]
[1754776823682,0.71,181.28,181.26,0.06]
[1754776823978,40.01,181.29,181.26,0.06]
[1754776824187,40.01,181.29,181.26,5.81466001]
[1754776824388,44.81606821,181.29,181.26,0.06]
[1754776824592,0.71,181.28,181.26,0.06]
[1754776825008,39.3,181.29,181.26,0.06]
[1754776825227,40.01,181.29,181.26,5.81466001]
[1754776825456,40.01,181.29,181.26,6.48466001]
[1754776825713,39.36,181.3,181.27,0.67]
[1754776825915,39.38,181.3,181.27,0.67]
[1754776826084,39.38,181.3,181.28,6.42466001]
[1754776826281,39.38,181.34,181.29,6.42466001]
[1754776826501,40.09,181.34,181.3,6.42466001]
[1754776827190,40.09,181.34,181.31,11.27005414]
[1754776827392,0.71,181.36,181.33,5.75466001]
[1754776827593,40.07,181.36,181.33,5.75466001]
[1754776828698,0.71,181.38,181.33,6.42466001]
[1754776829006,40.09,181.37,181.33,6.42466001]
[1754776829389,39.38,181.37,181.34,6.47466001]
[1754776829586,39.38,181.37,181.35,5.75466001]
[1754776830216,0.7,181.36,181.27,13.79139809]
[1754776830416,0.7,181.36,181.28,5.51632833]
[1754776830616,0.7,181.36,181.31,5.75466001]
[1754776830912,39.38,181.37,181.32,0.72]
[1754776831120,0.7,181.36,181.32,6.47466001]
[1754776831286,0.7,181.35,181.32,5.75466001]
[1754776831894,0.7,181.35,181.31,5.51529059]
[1754776831895,44.89362173,181.37,181.31,5.75466001]
[1754776832101,0.7,181.34,181.3,11.27024928]
[1754776832324,0.7,181.34,181.3,5.51558927]
[1754776832483,0.7,181.34,181.3,11.27024928]
[1754776832889,0.7,181.34,181.31,5.75466001]
[1754776833230,0.7,181.36,181.31,11.98982367]
[1754776833523,44.89362557,181.37,181.31,11.98982367]
[1754776833524,0.7,181.35,181.32,5.75466001]
[1754776833986,0.7,181.34,181.3,5.75466001]
[1754776834315,0.7,181.35,181.32,5.75466001]
[1754776834703,0.7,181.35,181.31,0.72]
[1754776834902,40.08,181.37,181.32,0.72]
[1754776835106,0.7,181.36,181.3,5.75466001]
[1754776835424,0.7,181.36,181.3,11.99036377]
[1754776836420,39.38,181.37,181.31,0.72]
[1754776837239,39.38,181.37,181.32,5.75466001]
[1754776837443,40.08,181.37,181.32,6.47466001]
[1754776837621,40.08,181.37,181.32,11.98965021]
[1754776838019,0.7,181.36,181.28,0.72]
[1754776838353,5.75466001,181.33,181.27,5.75466001]
[1754776838527,39.76,181.32,181.28,5.75466001]
[1754776838856,0.7,181.31,181.28,5.75466001]
[1754776839031,0.7,181.31,181.27,5.75466001]
[1754776840066,45.27526966,181.32,181.26,6.29686937]
[1754776840224,0.7,181.3,181.27,5.75466001]
[1754776840538,40.46,181.32,181.28,5.75466001]
[1754776841241,0.7,181.31,181.28,5.75466001]
[1754776841424,0.7,181.31,181.27,0.72]
[1754776841625,0.7,181.31,181.28,5.75466001]
[1754776843152,0.7,181.31,181.27,0.72]
[1754776843335,0.7,181.31,181.29,5.75466001]
[1754776843651,39.76,181.32,181.29,5.75466001]
[1754776844159,40.46,181.32,181.29,5.75466001]
[1754776844332,40.46,181.32,181.28,5.75466001]
[1754776844851,0.7,181.31,181.28,5.75466001]
[1754776845877,0.7,181.31,181.27,11.99126283]
[1754776846158,0.7,181.31,181.28,0.72]
[1754776846447,0.7,181.31,181.27,5.51660282]
[1754776846653,0.7,181.31,181.27,0.72]
[1754776847263,0.7,181.3,181.27,6.47466001]
[1754776848251,0.7,181.3,181.27,5.75466001]
[1754776848451,39.76,181.32,181.27,11.27129022]
[1754776848664,0.7,181.31,181.27,6.47466001]
[1754776849437,0.7,181.31,181.28,0.72]
[1754776851762,45.27512039,181.32,181.27,5.75466001]
[1754776852079,45.97512039,181.32,181.29,0.72]
[1754776852253,45.97512039,181.32,181.27,6.47466001]
[1754776852454,45.97512039,181.32,181.28,0.72]
[1754776852759,40.46,181.32,181.28,0.72]
[1754776853272,6.45466001,181.31,181.26,0.06]
[1754776853649,5.51602404,181.29,181.26,0.06]
[1754776853852,39.78,181.28,181.26,0.06]
[1754776854061,40.48,181.28,181.26,0.06]
[1754776854370,0.7,181.27,181.26,0.06]
[1754776857874,6.21663264,181.27,181.26,0.06]
[1754776858472,0.7,181.27,181.26,0.06]
[1754776860259,6.21663264,181.27,181.26,0.06]
[1754776861874,0.7,181.27,181.26,0.06]
[1754776862272,6.21663264,181.27,181.26,0.06]
[1754776862749,27.07750822,181.27,181.26,0.06]
[1754776863145,5.70312483,181.3,181.26,0.06]
[1754776863356,40.2,181.29,181.26,0.77]
[1754776863590,40.22,181.28,181.27,0.71]
[1754776863943,40.22,181.28,181.26,0.06]
[1754776864268,45.73637235,181.28,181.26,0.06]
[1754776864450,0.67,181.27,181.26,0.06]
[1754776864953,40.22,181.28,181.26,5.81466001]
[1754776865163,40.22,181.28,181.26,0.77]
[1754776865364,40.22,181.28,181.27,0.71]
[1754776867079,40.22,181.33,181.27,11.98124795]
[1754776867284,40.22,181.33,181.29,5.75466001]
[1754776867468,40.22,181.33,181.3,0.71]
[1754776868984,6.42466001,181.32,181.27,0.71]
[1754776869302,0.67,181.32,181.27,0.71]
[1754776869465,0.67,181.32,181.28,0.71]
[1754776872176,40.22,181.33,181.3,5.75466001]
[1754776872358,40.22,181.33,181.31,5.75466001]
[1754776874977,40.22,181.33,181.32,6.46466001]
[1754776875290,40.25,181.35,181.32,10.25968295]
[1754776875476,40.25,181.35,181.33,10.25968295]
[1754776875675,40.25,181.35,181.34,3.79502294]
[1754776875890,40.25,181.35,181.34,4.50502294]
[1754776876488,40.25,181.35,181.34,3.79502294]
[1754776876489,40.92,181.35,181.34,3.79502294]
[1754776878305,0.03,181.35,181.34,15.77418609]
[1754776884494,0.03,181.35,181.34,15.06418609]
[1754776884689,0.03,181.35,181.34,15.77418609]
[1754776885524,0.03,181.35,181.34,15.06418609]
[1754776886520,0.03,181.35,181.34,15.3775095]
[1754776886720,0.03,181.35,181.34,9.86300636]
[1754776887020,0.7,181.35,181.34,9.86300636]
[1754776887228,0.03,181.35,181.34,9.86300636]
[1754776887820,0.7,181.35,181.34,4.10834635]
[1754776892133,6.21419906,181.35,181.34,4.10834635]
[1754776892646,6.21419906,181.35,181.34,4.10852039]
[1754776892647,11.96885907,181.35,181.34,4.10852039]
[1754776894240,6.21419906,181.35,181.34,4.10852039]
[1754776894837,5.54419906,181.35,181.34,4.10852039]
[1754776895418,6.26419906,181.35,181.34,4.10852039]
[1754776896546,0.03,181.35,181.34,4.82852039]
[1754776897238,0.03,181.35,181.34,9.8631804]
[1754776898023,0.03,181.35,181.34,10.5831804]
[1754776898221,0.03,181.35,181.34,10.58300687]
[1754776898748,0.03,181.35,181.34,4.82834686]
[1754776898953,0.03,181.35,181.34,10.58300687]
[1754776900431,0.03,181.35,181.34,9.86300687]
[1754776901655,0.03,181.35,181.34,4.10834686]
[1754776901962,0.75,181.35,181.34,4.10834686]
[1754776904154,0.03,181.35,181.34,4.10834686]
[1754776905069,0.03,181.35,181.34,4.82834686]
[1754776905231,0.03,181.35,181.34,10.58300687]
[1754776905429,0.75,181.35,181.34,4.10834686]
[1754776905934,6.26419906,181.35,181.34,4.10834686]
[1754776908061,5.54419906,181.35,181.34,4.10834686]
[1754776908253,0.03,181.35,181.34,10.58300687]
[1754776908431,0.03,181.35,181.34,16.09751001]
[1754776909436,0.03,181.35,181.34,21.85217002]
[1754776909837,0.03,181.37,181.36,26.0]
[1754776910144,0.03,181.37,181.36,41.37690188]
[1754776910667,0.03,181.37,181.36,42.09690188]
[1754776912738,0.03,181.37,181.36,97.51450695]
[1754776913057,0.03,181.39,181.38,5.75466001]
[1754776913387,0.03,181.39,181.38,9.86300687]
[1754776913549,0.03,181.39,181.38,10.58300687]
[1754776914263,0.03,181.39,181.38,9.86300687]
[1754776915275,0.03,181.39,181.38,4.10834686]
[1754776915661,0.03,181.39,181.38,9.86300687]
[1754776915848,0.03,181.39,181.38,4.10834686]
[1754776916171,0.03,181.39,181.38,9.86300687]
[1754776916376,0.03,181.39,181.38,4.10834686]
[1754776916548,0.03,181.39,181.38,9.86300687]
[1754776920646,0.68,181.39,181.38,4.10834686]
[1754776922767,11.94764308,181.39,181.38,4.10834686]